Workbook

Sheet Übersicht
A1: Nr. | B1: Projekt | C1: Laufzeit | D1: BA | E1: Budget | F1: Ausgaben | G1: Rest
A3: 1 | B3: Safegurard I (neu) | C3: 01.08.2019-31.07.2020 | D3: 1100000102 | E3: 5000 | F3: ='Safeguard I'!D4 -> 0 | G3: =E3-F3 -> 5000
A6: =A3+1 -> 2 | B6: Safeguard II | C6: 01.02.2020-31.01.2021 | D6: 1100068701 | E6: 9600 | F6: ='Safeguard II'!D4 -> 0 | G6: =E6-F6 -> 9600
A9: =A6+1 -> 3 | B9: Diarect bilateral | D9: 1085552101 | E9: 0 | F9: ='Diarect bl'!D4 -> 0 | G9: =E9-F9 -> 0
A12: =A9+1 -> 4 | B12: Sammelkonto Toto | C12: - 31.03.2028 | D12: 2047193601 | E12: 0 | F12: =Toto!D4 -> 0 | G12: =E12-F12 -> 0
A15: =A12+1 -> 5 | B15: Roche | C15: bis 31.03.2020 | D15: 1100039301 | E15: 2000 | F15: =Roche!D4 -> 281.695 | G15: =E15-F15 -> 1718.305
A18: =A15+1 -> 6 | B18: Spendenkonto | D18: 2100037801-SP | E18: 0 | F18: =Spenden!D4 -> 0 | G18: =E18-F18 -> 0
A21: =A18+1 -> 7 | B21: DFG Analyseplatform | C21: - 31.03.2020 | D21: 2100090701 | E21: 0 | F21: ='DFG mtor'!D4 -> 0 | G21: =E21-F21 -> 0
A24: =A21+1 -> 8 | B24: Pors Konto | D24: 2100092201 | E24: 5000 | F24: ='DFG mtor'!D4 -> 0 | G24: =E24-F24 -> 5000
A27: =A24+1 -> 9 | B27: BMBF Zellisolator | C27: 01.09.2018 - 31.08.2021 | D27: 2100227801 | E27: 11000 | F27: =Zellisolator!D4 -> 1856.2 | G27: =E27-F27 -> 9143.8
A30: =A27+1 -> 10 | B30: Streck | C30: bis 30.06.2025 | D30: 1100052801 | E30: 2000 | F30: =Streck!D4 -> 0 | G30: =E30-F30 -> 2000
A33: =A30+1 -> 11 | B33: DFG PakPapier | C33: 01.08.2018 - 31.01.2022 | D33: 2100237301 | E33: 15000 | F33: ='DFG Papier'!D4 -> 202.3 | G33: =E33-F33 -> 14797.7
A36: =A33+1 -> 12 | B36: DFG PmP | C36: 01.12.2018-30.11.2021 | D36: 2100246401 | E36: 16000 | F36: ='DFG PmP'!D4 -> 0 | G36: =E36-F36 -> 16000
A39: =A36+1 -> 13 | B39: IGF Bier | C39: 01.11.2018-31.10.2020 | D39: 2100236801 | E39: 25000 | F39: =Bier!D4 -> 1587.0168 | G39: =E39-F39 -> 23412.9832
A42: =A39+1 -> 14 | B42: BMBF CTC | C42: 01.07.2019-30.06.2022 | D42: 2100288001 | E42: 16000 | F42: ='BMBF CTC'!D4 -> 1507.7108 | G42: =E42-F42 -> 14492.2892
A45: =A42+1 -> 15 | B45: GenXPro | C45: 01.05.2019-30.04.2022 | D45: 2100276501 | E45: 5000 | F45: =GenXPro!D4 -> 199.465 | G45: =E45-F45 -> 4800.535
A48: =A45+1 -> 16 | B48: DFG Dynamic Wetting | C48: 01.10.2019-30.09.2022 | D48: 2100283401 | E48: 2000 | F48: ='DFG DynWet'!D4 -> 0 | G48: =E48-F48 -> 2000
A51: =A48+1 -> 17 | B51: DFG Kommma | C51: 01.11.2019-30.10.2022 | D51: 2100295201 | E51: 20000 | F51: ='DFG Kommma'!D4 -> 0 | G51: =E51-F51 -> 20000
A54: =A51+1 -> 18 | B54: ZIM Microcoat II | C54: 01.10.2019-30.09.2022 | D54: 2100302101 | E54: 5000 | F54: ='Zim Microcoat 2'!D4 -> 1306.8552 | G54: =E54-F54 -> 3693.1448

Sheet Safeguard I
A1: 1 | D1: 1. Halbjahr | E1: 2. Halbjahr
A2: =IF(ISBLANK(INDIRECT(ADDRESS(A1*3,2,TRUE,TRUE,"Übersicht"))),"",INDIRECT(ADDRESS(A1*3,2,TRUE,TRUE,"Übersicht"))) -> Safegurard I (neu) | C2: Buchungsabschnitt | D2: =IF(ISBLANK(INDIRECT(ADDRESS(A1*3,4,TRUE,TRUE,"Übersicht"))),"",INDIRECT(ADDRESS(A1*3,4,TRUE,TRUE,"Übersicht"))) -> 1100000102 | E2: 1100000102
A3: =IF(ISBLANK(INDIRECT(ADDRESS(A1*3,3,TRUE,TRUE,"Übersicht"))),"",INDIRECT(ADDRESS(A1*3,3,TRUE,TRUE,"Übersicht"))) -> 01.08.2019-31.07.2020 | C3: Budget | D3: =IF(ISBLANK(INDIRECT(ADDRESS(A1*3,5,TRUE,TRUE,"Übersicht"))),"",INDIRECT(ADDRESS(A1*3,5,TRUE,TRUE,"Übersicht"))) -> 5000 | E3: =D3 -> 5000
C4: Ausgaben | D4: =SUM(D9:D95) -> 0 | E4: =SUM(E9:E100) -> 1708.7824
C5: Rest | D5: =D3-D4 -> 5000 | E5: =E3-E4 -> 3291.2176
A8: Rechnungsdatum | B8: Bestellartikel | C8: Firma | D8: Kosten in EUR | E8: Kosten in EUR
A9: 2020-01-21 | B9: Natriumperiodat | C9: VWR | E9: 144.7
A10: 2020-01-25 | B10: Versandkosten | C10: Scienion | E10: 33.94
A11: 2020-02-11 | B11: 96 Well MTP schwarz | C11: Greiner BioOne | E11: 515.89
A12: 2020-02-26 | B12: Cryoboxen | C12: Carl Roth | E12: =73.26*1.19 -> 87.1794
A13: 2020-03-04 | B13: Braunglasflaschen | C13: Carl Roth | E13: 181.06
A14: 2020-03-04 | B14: Sterillium | C14: VWR | E14: 126.38
A15: 2020-03-10 | B15: IgG | C15: VWR | E15: =415.7*1.19 -> 494.683
A16: 2020-03-10 | B16: Cy5-amin | C16: Lumiprobe | E16: 124.95

Sheet Safeguard II
A1: 2
A2: =IF(ISBLANK(INDIRECT(ADDRESS(A1*3,2,TRUE,TRUE,"Übersicht"))),"",INDIRECT(ADDRESS(A1*3,2,TRUE,TRUE,"Übersicht"))) -> Safeguard II | C2: Buchungsabschnitt | D2: =IF(ISBLANK(INDIRECT(ADDRESS(A1*3,4,TRUE,TRUE,"Übersicht"))),"",INDIRECT(ADDRESS(A1*3,4,TRUE,TRUE,"Übersicht"))) -> 1100068701
A3: =IF(ISBLANK(INDIRECT(ADDRESS(A1*3,3,TRUE,TRUE,"Übersicht"))),"",INDIRECT(ADDRESS(A1*3,3,TRUE,TRUE,"Übersicht"))) -> 01.02.2020-31.01.2021 | C3: Budget | D3: 8000
C4: Ausgaben | D4: =SUM(D9:D50) -> 0
C5: Rest | D5: =D3-D4 -> 8000
A8: Rechnungsdatum | B8: Bestellartikel | C8: Firma | D8: Kosten in EUR

Sheet Diarect bl
A1: 3
A2: =IF(ISBLANK(INDIRECT(ADDRESS(A1*3,2,TRUE,TRUE,"Übersicht"))),"",INDIRECT(ADDRESS(A1*3,2,TRUE,TRUE,"Übersicht"))) -> Diarect bilateral | C2: Buchungsabschnitt | D2: =IF(ISBLANK(INDIRECT(ADDRESS(A1*3,4,TRUE,TRUE,"Übersicht"))),"",INDIRECT(ADDRESS(A1*3,4,TRUE,TRUE,"Übersicht"))) -> 1085552101
A3: =IF(ISBLANK(INDIRECT(ADDRESS(A1*3,3,TRUE,TRUE,"Übersicht"))),"",INDIRECT(ADDRESS(A1*3,3,TRUE,TRUE,"Übersicht"))) ->  | C3: Budget | D3: =IF(ISBLANK(INDIRECT(ADDRESS(A1*3,5,TRUE,TRUE,"Übersicht"))),"",INDIRECT(ADDRESS(A1*3,5,TRUE,TRUE,"Übersicht"))) -> 0
C4: Ausgaben | D4: =SUM(D9:D50) -> 0
C5: Rest | D5: =D3-D4 -> 0
A8: Rechnungsdatum | B8: Bestellartikel | C8: Firma | D8: Kosten in EUR

Sheet Toto
A1: 4
A2: =IF(ISBLANK(INDIRECT(ADDRESS(A1*3,2,TRUE,TRUE,"Übersicht"))),"",INDIRECT(ADDRESS(A1*3,2,TRUE,TRUE,"Übersicht"))) -> Sammelkonto Toto | C2: Buchungsabschnitt | D2: =IF(ISBLANK(INDIRECT(ADDRESS(A1*3,4,TRUE,TRUE,"Übersicht"))),"",INDIRECT(ADDRESS(A1*3,4,TRUE,TRUE,"Übersicht"))) -> 2047193601
A3: =IF(ISBLANK(INDIRECT(ADDRESS(A1*3,3,TRUE,TRUE,"Übersicht"))),"",INDIRECT(ADDRESS(A1*3,3,TRUE,TRUE,"Übersicht"))) -> - 31.03.2028 | C3: Budget | D3: =IF(ISBLANK(INDIRECT(ADDRESS(A1*3,5,TRUE,TRUE,"Übersicht"))),"",INDIRECT(ADDRESS(A1*3,5,TRUE,TRUE,"Übersicht"))) -> 0
C4: Ausgaben | D4: =SUM(D9:D50) -> 0
C5: Rest | D5: =D3-D4 -> 0
A8: Rechnungsdatum | B8: Bestellartikel | C8: Firma | D8: Kosten in EUR

Sheet Roche
A1: 5
A2: =IF(ISBLANK(INDIRECT(ADDRESS(A1*3,2,TRUE,TRUE,"Übersicht"))),"",INDIRECT(ADDRESS(A1*3,2,TRUE,TRUE,"Übersicht"))) -> Roche | C2: Buchungsabschnitt | D2: =IF(ISBLANK(INDIRECT(ADDRESS(A1*3,4,TRUE,TRUE,"Übersicht"))),"",INDIRECT(ADDRESS(A1*3,4,TRUE,TRUE,"Übersicht"))) -> 1100039301
A3: =IF(ISBLANK(INDIRECT(ADDRESS(A1*3,3,TRUE,TRUE,"Übersicht"))),"",INDIRECT(ADDRESS(A1*3,3,TRUE,TRUE,"Übersicht"))) -> bis 31.03.2020 | C3: Budget | D3: =IF(ISBLANK(INDIRECT(ADDRESS(A1*3,5,TRUE,TRUE,"Übersicht"))),"",INDIRECT(ADDRESS(A1*3,5,TRUE,TRUE,"Übersicht"))) -> 2000
C4: Ausgaben | D4: =SUM(D9:D50) -> 281.695
C5: Rest | D5: =D3-D4 -> 1718.305
A8: Rechnungsdatum | B8: Bestellartikel | C8: Firma | D8: Kosten in EUR
A9: 2020-01-20 | B9: Plurstrainer Siebe | C9: Hiss Diagnostics | D9: 141.61
A10: 2020-02-05 | B10: Plurstrainer Siebe | C10: Hiss Diagnostics | D10: =49.5*1.19 -> 58.905
A11: 2020-02-11 | B11: Versand an Roche | C11: TNT | D11: 40.9
A12: 2020-03-02 | B12: Versand an Roche | C12: TNT | D12: 40.28

Sheet Spenden
A1: 6
A2: =IF(ISBLANK(INDIRECT(ADDRESS(A1*3,2,TRUE,TRUE,"Übersicht"))),"",INDIRECT(ADDRESS(A1*3,2,TRUE,TRUE,"Übersicht"))) -> Spendenkonto | C2: Buchungsabschnitt | D2: =IF(ISBLANK(INDIRECT(ADDRESS(A1*3,4,TRUE,TRUE,"Übersicht"))),"",INDIRECT(ADDRESS(A1*3,4,TRUE,TRUE,"Übersicht"))) -> 2100037801-SP
A3: =IF(ISBLANK(INDIRECT(ADDRESS(A1*3,3,TRUE,TRUE,"Übersicht"))),"",INDIRECT(ADDRESS(A1*3,3,TRUE,TRUE,"Übersicht"))) ->  | C3: Budget | D3: =IF(ISBLANK(INDIRECT(ADDRESS(A1*3,5,TRUE,TRUE,"Übersicht"))),"",INDIRECT(ADDRESS(A1*3,5,TRUE,TRUE,"Übersicht"))) -> 0
C4: Ausgaben | D4: =SUM(D9:D50) -> 0
C5: Rest | D5: =D3-D4 -> 0
A8: Rechnungsdatum | B8: Bestellartikel | C8: Firma | D8: Kosten in EUR

Sheet cryoPoc
A1: 7
A2: =IF(ISBLANK(INDIRECT(ADDRESS(A1*3,2,TRUE,TRUE,"Übersicht"))),"",INDIRECT(ADDRESS(A1*3,2,TRUE,TRUE,"Übersicht"))) -> DFG Analyseplatform | C2: Buchungsabschnitt | D2: =IF(ISBLANK(INDIRECT(ADDRESS(A1*3,4,TRUE,TRUE,"Übersicht"))),"",INDIRECT(ADDRESS(A1*3,4,TRUE,TRUE,"Übersicht"))) -> 2100090701
A3: =IF(ISBLANK(INDIRECT(ADDRESS(A1*3,3,TRUE,TRUE,"Übersicht"))),"",INDIRECT(ADDRESS(A1*3,3,TRUE,TRUE,"Übersicht"))) -> - 31.03.2020 | C3: Budget | D3: =IF(ISBLANK(INDIRECT(ADDRESS(A1*3,5,TRUE,TRUE,"Übersicht"))),"",INDIRECT(ADDRESS(A1*3,5,TRUE,TRUE,"Übersicht"))) -> 0
C4: Ausgaben | D4: =SUM(D9:D49) -> 0
C5: Rest | D5: =D3-D4 -> 0
A8: Rechnungsdatum | B8: Bestellartikel | C8: Firma | D8: Kosten in EUR

Sheet DFG mtor
A1: 7
A2: =IF(ISBLANK(INDIRECT(ADDRESS(A1*3,2,TRUE,TRUE,"Übersicht"))),"",INDIRECT(ADDRESS(A1*3,2,TRUE,TRUE,"Übersicht"))) -> DFG Analyseplatform | C2: Buchungsabschnitt | D2: =IF(ISBLANK(INDIRECT(ADDRESS(A1*3,4,TRUE,TRUE,"Übersicht"))),"",INDIRECT(ADDRESS(A1*3,4,TRUE,TRUE,"Übersicht"))) -> 2100090701
A3: =IF(ISBLANK(INDIRECT(ADDRESS(A1*3,3,TRUE,TRUE,"Übersicht"))),"",INDIRECT(ADDRESS(A1*3,3,TRUE,TRUE,"Übersicht"))) -> - 31.03.2020 | C3: Budget | D3: =IF(ISBLANK(INDIRECT(ADDRESS(A1*3,5,TRUE,TRUE,"Übersicht"))),"",INDIRECT(ADDRESS(A1*3,5,TRUE,TRUE,"Übersicht"))) -> 0
C4: Ausgaben | D4: =SUM(D9:D48) -> 0
C5: Rest | D5: =D3-D4 -> 0
A8: Rechnungsdatum | B8: Bestellartikel | C8: Firma | D8: Kosten in EUR

Sheet Por
A1: 8
A2: =IF(ISBLANK(INDIRECT(ADDRESS(A1*3,2,TRUE,TRUE,"Übersicht"))),"",INDIRECT(ADDRESS(A1*3,2,TRUE,TRUE,"Übersicht"))) -> Pors Konto | C2: Buchungsabschnitt | D2: =IF(ISBLANK(INDIRECT(ADDRESS(A1*3,4,TRUE,TRUE,"Übersicht"))),"",INDIRECT(ADDRESS(A1*3,4,TRUE,TRUE,"Übersicht"))) -> 2100092201
A3: =IF(ISBLANK(INDIRECT(ADDRESS(A1*3,3,TRUE,TRUE,"Übersicht"))),"",INDIRECT(ADDRESS(A1*3,3,TRUE,TRUE,"Übersicht"))) ->  | C3: Budget | D3: =IF(ISBLANK(INDIRECT(ADDRESS(A1*3,5,TRUE,TRUE,"Übersicht"))),"",INDIRECT(ADDRESS(A1*3,5,TRUE,TRUE,"Übersicht"))) -> 5000
C4: Ausgaben | D4: =SUM(D9:D50) -> 0
C5: Rest | D5: =D3-D4 -> 5000
A8: Rechnungsdatum | B8: Bestellartikel | C8: Firma | D8: Kosten in EUR

Sheet Zellisolator
A1: 9
A2: =IF(ISBLANK(INDIRECT(ADDRESS(A1*3,2,TRUE,TRUE,"Übersicht"))),"",INDIRECT(ADDRESS(A1*3,2,TRUE,TRUE,"Übersicht"))) -> BMBF Zellisolator | C2: Buchungsabschnitt | D2: =IF(ISBLANK(INDIRECT(ADDRESS(A1*3,4,TRUE,TRUE,"Übersicht"))),"",INDIRECT(ADDRESS(A1*3,4,TRUE,TRUE,"Übersicht"))) -> 2100227801
A3: =IF(ISBLANK(INDIRECT(ADDRESS(A1*3,3,TRUE,TRUE,"Übersicht"))),"",INDIRECT(ADDRESS(A1*3,3,TRUE,TRUE,"Übersicht"))) -> 01.09.2018 - 31.08.2021 | C3: Budget | D3: =IF(ISBLANK(INDIRECT(ADDRESS(A1*3,5,TRUE,TRUE,"Übersicht"))),"",INDIRECT(ADDRESS(A1*3,5,TRUE,TRUE,"Übersicht"))) -> 11000
C4: Ausgaben | D4: =SUM(D9:D50) -> 1856.2
C5: Rest | D5: =D3-D4 -> 9143.8
A8: Rechnungsdatum | B8: Bestellartikel | C8: Firma | D8: Kosten in EUR
A9: 2020-01-15 | B9: Serum/EDTA | C9: Uniklinik Freiburg | D9: 95
A10: 2020-01-27 | B10: Alexa-Markiertes Peptid | C10: PSL GmbH | D10: 1761.2

Sheet Streck
A1: 10
A2: =IF(ISBLANK(INDIRECT(ADDRESS(A1*3,2,TRUE,TRUE,"Übersicht"))),"",INDIRECT(ADDRESS(A1*3,2,TRUE,TRUE,"Übersicht"))) -> Streck | C2: Buchungsabschnitt | D2: =IF(ISBLANK(INDIRECT(ADDRESS(A1*3,4,TRUE,TRUE,"Übersicht"))),"",INDIRECT(ADDRESS(A1*3,4,TRUE,TRUE,"Übersicht"))) -> 1100052801
A3: =IF(ISBLANK(INDIRECT(ADDRESS(A1*3,3,TRUE,TRUE,"Übersicht"))),"",INDIRECT(ADDRESS(A1*3,3,TRUE,TRUE,"Übersicht"))) -> bis 30.06.2025 | C3: Budget | D3: =IF(ISBLANK(INDIRECT(ADDRESS(A1*3,5,TRUE,TRUE,"Übersicht"))),"",INDIRECT(ADDRESS(A1*3,5,TRUE,TRUE,"Übersicht"))) -> 2000
C4: Ausgaben | D4: =SUM(D9:D50) -> 0
C5: Rest | D5: =D3-D4 -> 2000
A8: Rechnungsdatum | B8: Bestellartikel | C8: Firma | D8: Kosten in EUR

Sheet DFG Papier
A1: 11
A2: =IF(ISBLANK(INDIRECT(ADDRESS(A1*3,2,TRUE,TRUE,"Übersicht"))),"",INDIRECT(ADDRESS(A1*3,2,TRUE,TRUE,"Übersicht"))) -> DFG PakPapier | C2: Buchungsabschnitt | D2: =IF(ISBLANK(INDIRECT(ADDRESS(A1*3,4,TRUE,TRUE,"Übersicht"))),"",INDIRECT(ADDRESS(A1*3,4,TRUE,TRUE,"Übersicht"))) -> 2100237301
A3: =IF(ISBLANK(INDIRECT(ADDRESS(A1*3,3,TRUE,TRUE,"Übersicht"))),"",INDIRECT(ADDRESS(A1*3,3,TRUE,TRUE,"Übersicht"))) -> 01.08.2018 - 31.01.2022 | C3: Budget | D3: =IF(ISBLANK(INDIRECT(ADDRESS(A1*3,5,TRUE,TRUE,"Übersicht"))),"",INDIRECT(ADDRESS(A1*3,5,TRUE,TRUE,"Übersicht"))) -> 15000
C4: Ausgaben | D4: =SUM(D9:D50) -> 202.3
C5: Rest | D5: =D3-D4 -> 14797.7
A8: Rechnungsdatum | B8: Bestellartikel | C8: Firma | D8: Kosten in EUR
A9: 2020-02-04 | B9: Technovit 7100 combipack | C9: VWR | D9: =170*1.19 -> 202.3

Sheet DFG PmP
A1: 12
A2: =IF(ISBLANK(INDIRECT(ADDRESS(A1*3,2,TRUE,TRUE,"Übersicht"))),"",INDIRECT(ADDRESS(A1*3,2,TRUE,TRUE,"Übersicht"))) -> DFG PmP | C2: Buchungsabschnitt | D2: =IF(ISBLANK(INDIRECT(ADDRESS(A1*3,4,TRUE,TRUE,"Übersicht"))),"",INDIRECT(ADDRESS(A1*3,4,TRUE,TRUE,"Übersicht"))) -> 2100246401
A3: =IF(ISBLANK(INDIRECT(ADDRESS(A1*3,3,TRUE,TRUE,"Übersicht"))),"",INDIRECT(ADDRESS(A1*3,3,TRUE,TRUE,"Übersicht"))) -> 01.12.2018-30.11.2021 | C3: Budget | D3: =IF(ISBLANK(INDIRECT(ADDRESS(A1*3,5,TRUE,TRUE,"Übersicht"))),"",INDIRECT(ADDRESS(A1*3,5,TRUE,TRUE,"Übersicht"))) -> 16000
C4: Ausgaben | D4: =SUM(D9:D50) -> 0
C5: Rest | D5: =D3-D4 -> 16000
A8: Rechnungsdatum | B8: Bestellartikel | C8: Firma | D8: Kosten in EUR

Sheet Bier
A1: 13
A2: =IF(ISBLANK(INDIRECT(ADDRESS(A1*3,2,TRUE,TRUE,"Übersicht"))),"",INDIRECT(ADDRESS(A1*3,2,TRUE,TRUE,"Übersicht"))) -> IGF Bier | C2: Buchungsabschnitt | D2: =IF(ISBLANK(INDIRECT(ADDRESS(A1*3,4,TRUE,TRUE,"Übersicht"))),"",INDIRECT(ADDRESS(A1*3,4,TRUE,TRUE,"Übersicht"))) -> 2100236801
A3: =IF(ISBLANK(INDIRECT(ADDRESS(A1*3,3,TRUE,TRUE,"Übersicht"))),"",INDIRECT(ADDRESS(A1*3,3,TRUE,TRUE,"Übersicht"))) -> 01.11.2018-31.10.2020 | C3: Budget | D3: =IF(ISBLANK(INDIRECT(ADDRESS(A1*3,5,TRUE,TRUE,"Übersicht"))),"",INDIRECT(ADDRESS(A1*3,5,TRUE,TRUE,"Übersicht"))) -> 25000
C4: Ausgaben | D4: =SUM(D9:D50) -> 1587.0168
C5: Rest | D5: =D3-D4 -> 23412.9832
A8: Rechnungsdatum | B8: Bestellartikel | C8: Firma | D8: Kosten in EUR
A9: 2020-01-30 | B9: Microcontroller | C9: Mouser | D9: =100.44*1.19 -> 119.5236
A10: 2020-01-31 | B10: Elektronikbauteile | C10: Conrad | D10: 74.51
A11: 2020-02-06 | B11: Naphthola, etc | C11: Sigma-Aldrich | D11: 192.42
A12: 2020-02-11 | B12: UV-LEDs | C12: Roithner Lasertechnik | D12: =959.28*1.19 -> 1141.5432
A13: 2020-02-25 | B13: Puhs-Buttons | C13: SOS electronic | D13: 12.97
A14: 2020-03-10 | B14: Versandkosten | C14: TNT | D14: 46.05

Sheet BMBF CTC
A1: 14
A2: =IF(ISBLANK(INDIRECT(ADDRESS(A1*3,2,TRUE,TRUE,"Übersicht"))),"",INDIRECT(ADDRESS(A1*3,2,TRUE,TRUE,"Übersicht"))) -> BMBF CTC | C2: Buchungsabschnitt | D2: =IF(ISBLANK(INDIRECT(ADDRESS(A1*3,4,TRUE,TRUE,"Übersicht"))),"",INDIRECT(ADDRESS(A1*3,4,TRUE,TRUE,"Übersicht"))) -> 2100288001
A3: =IF(ISBLANK(INDIRECT(ADDRESS(A1*3,3,TRUE,TRUE,"Übersicht"))),"",INDIRECT(ADDRESS(A1*3,3,TRUE,TRUE,"Übersicht"))) -> 01.07.2019-30.06.2022 | C3: Budget | D3: =IF(ISBLANK(INDIRECT(ADDRESS(A1*3,5,TRUE,TRUE,"Übersicht"))),"",INDIRECT(ADDRESS(A1*3,5,TRUE,TRUE,"Übersicht"))) -> 16000
C4: Ausgaben | D4: =SUM(D9:D50) -> 1507.7108
C5: Rest | D5: =D3-D4 -> 14492.2892
A8: Rechnungsdatum | B8: Bestellartikel | C8: Firma | D8: Kosten in EUR
A9: 2020-01-14 | B9: Swinnex Filter Holder | C9: Sigma-Aldrich | D9: 203.72
A10: 2020-01-14 | B10: PCTE-Filter | C10: Sterlitech | D10: =196.42 -> 196.42
A11: 2020-01-14 | B11: Streptavidin | C11: Carl Roth | D11: 318.62
A12: 2020-02-04 | B12: Streptavidin-Cy5 | C12: VWR | D12: =187.57*1.19 -> 223.2083
A13: 2020-02-25 | B13: Zollrechnung Sterlitech | C13: DHL | D13: 49.66
A14: 2020-02-26 | B14: Streptavidin | C14: Carl Roth | D14: =267.75*1.19 -> 318.6225
A15: 2020-02-26 | B15: Tygon Tubing | C15: Kinesis | D15: 58.23
A16: 2020-03-04 | B16: 9µm PMMA Beads | C16: PolyAn | D16: 139.23

Sheet GenXPro
A1: 15
A2: =IF(ISBLANK(INDIRECT(ADDRESS(A1*3,2,TRUE,TRUE,"Übersicht"))),"",INDIRECT(ADDRESS(A1*3,2,TRUE,TRUE,"Übersicht"))) -> GenXPro | C2: Buchungsabschnitt | D2: =IF(ISBLANK(INDIRECT(ADDRESS(A1*3,4,TRUE,TRUE,"Übersicht"))),"",INDIRECT(ADDRESS(A1*3,4,TRUE,TRUE,"Übersicht"))) -> 2100276501
A3: =IF(ISBLANK(INDIRECT(ADDRESS(A1*3,3,TRUE,TRUE,"Übersicht"))),"",INDIRECT(ADDRESS(A1*3,3,TRUE,TRUE,"Übersicht"))) -> 01.05.2019-30.04.2022 | C3: Budget | D3: =IF(ISBLANK(INDIRECT(ADDRESS(A1*3,5,TRUE,TRUE,"Übersicht"))),"",INDIRECT(ADDRESS(A1*3,5,TRUE,TRUE,"Übersicht"))) -> 5000
C4: Ausgaben | D4: =SUM(D9:D50) -> 199.465
C5: Rest | D5: =D3-D4 -> 4800.535
A8: Rechnungsdatum | B8: Bestellartikel | C8: Firma | D8: Kosten in EUR
A9: 2020-01-20 | B9: Versand an Genxpro | C9: TNT | D9: 40
A10: 2020-01-20 | B10: SSD (für Ali) | C10: Bechtle | D10: =69.5*1.19 -> 82.705
A11: 2020-02-10 | B11: Zymo-Spin IC Columns | C11: Zymo Research | D11: 76.76

Sheet DFG DynWet
A1: 16
A2: =IF(ISBLANK(INDIRECT(ADDRESS(A1*3,2,TRUE,TRUE,"Übersicht"))),"",INDIRECT(ADDRESS(A1*3,2,TRUE,TRUE,"Übersicht"))) -> DFG Dynamic Wetting | C2: Buchungsabschnitt | D2: =IF(ISBLANK(INDIRECT(ADDRESS(A1*3,4,TRUE,TRUE,"Übersicht"))),"",INDIRECT(ADDRESS(A1*3,4,TRUE,TRUE,"Übersicht"))) -> 2100283401
A3: =IF(ISBLANK(INDIRECT(ADDRESS(A1*3,3,TRUE,TRUE,"Übersicht"))),"",INDIRECT(ADDRESS(A1*3,3,TRUE,TRUE,"Übersicht"))) -> 01.10.2019-30.09.2022 | C3: Budget | D3: =IF(ISBLANK(INDIRECT(ADDRESS(A1*3,5,TRUE,TRUE,"Übersicht"))),"",INDIRECT(ADDRESS(A1*3,5,TRUE,TRUE,"Übersicht"))) -> 2000
C4: Ausgaben | D4: =SUM(D9:D50) -> 0
C5: Rest | D5: =D3-D4 -> 2000
A8: Rechnungsdatum | B8: Bestellartikel | C8: Firma | D8: Kosten in EUR

Sheet DFG Kommma
A1: 17
A2: =IF(ISBLANK(INDIRECT(ADDRESS(A1*3,2,TRUE,TRUE,"Übersicht"))),"",INDIRECT(ADDRESS(A1*3,2,TRUE,TRUE,"Übersicht"))) -> DFG Kommma | C2: Buchungsabschnitt | D2: =IF(ISBLANK(INDIRECT(ADDRESS(A1*3,4,TRUE,TRUE,"Übersicht"))),"",INDIRECT(ADDRESS(A1*3,4,TRUE,TRUE,"Übersicht"))) -> 2100295201
A3: =IF(ISBLANK(INDIRECT(ADDRESS(A1*3,3,TRUE,TRUE,"Übersicht"))),"",INDIRECT(ADDRESS(A1*3,3,TRUE,TRUE,"Übersicht"))) -> 01.11.2019-30.10.2022 | C3: Budget | D3: =IF(ISBLANK(INDIRECT(ADDRESS(A1*3,5,TRUE,TRUE,"Übersicht"))),"",INDIRECT(ADDRESS(A1*3,5,TRUE,TRUE,"Übersicht"))) -> 20000
C4: Ausgaben | D4: =SUM(D9:D50) -> 0
C5: Rest | D5: =D3-D4 -> 20000
A8: Rechnungsdatum | B8: Bestellartikel | C8: Firma | D8: Kosten in EUR

Sheet Zim Microcoat 2
A1: 18
A2: =IF(ISBLANK(INDIRECT(ADDRESS(A1*3,2,TRUE,TRUE,"Übersicht"))),"",INDIRECT(ADDRESS(A1*3,2,TRUE,TRUE,"Übersicht"))) -> ZIM Microcoat II | C2: Buchungsabschnitt | D2: =IF(ISBLANK(INDIRECT(ADDRESS(A1*3,4,TRUE,TRUE,"Übersicht"))),"",INDIRECT(ADDRESS(A1*3,4,TRUE,TRUE,"Übersicht"))) -> 2100302101
A3: =IF(ISBLANK(INDIRECT(ADDRESS(A1*3,3,TRUE,TRUE,"Übersicht"))),"",INDIRECT(ADDRESS(A1*3,3,TRUE,TRUE,"Übersicht"))) -> 01.10.2019-30.09.2022 | C3: Budget | D3: =IF(ISBLANK(INDIRECT(ADDRESS(A1*3,5,TRUE,TRUE,"Übersicht"))),"",INDIRECT(ADDRESS(A1*3,5,TRUE,TRUE,"Übersicht"))) -> 5000
C4: Ausgaben | D4: =SUM(D9:D50) -> 1306.8552
C5: Rest | D5: =D3-D4 -> 3693.1448
A8: Rechnungsdatum | B8: Bestellartikel | C8: Firma | D8: Kosten in EUR
A9: 2020-01-20 | B9: Versand an Microcoat | C9: TNT | D9: 40
A10: 2020-02-27 | B10: Mikrotiterplatten, schwarz | C10: Greiner BioOne | D10: 515.89
A11: 2020-03-10 | B11: Ziege IgG anti-Human IgM (µ)-Alexa Fluor 647 | C11: Dianova | D11: =210*1.19 -> 249.9
A12: 2020-03-10 | B12: Ismatec Pumpen Kasetten | C12: Cole Palmer | D12: =128.08*1.19 -> 152.4152
A13: 2020-03-10 | B13: AffiniPure Rabbit Anti-Goat IgG (H+L) | C13: Jackson Immuno | D13: 146.37
A14: 2020-03-10 | B14: Goat anti-Human IgG Fc Cross-Adsorbed Secondary Antibody, DyLight 550 | C14: Thermo Fisher | D14: =136*1.19 -> 161.84
A15: 2020-03-10 | B15: Versand an Microcoat | C15: TNT | D15: 40.44
